lending/lending_fUSD_20241120
["ID","MTS","AMOUNT","RATE_DAILY","PERIOD"]
[342798016,1732143053735,-1500.0,0.00054794,120]
[342798017,1732143053744,-500.0,0.00054794,120]
[342798018,1732143053754,-1500.0,0.00054794,120]
[342798019,1732143053765,-500.0,0.00054794,120]
[342798020,1732143053774,-1500.0,0.00054794,120]
[342798021,1732143053783,-500.0,0.00054794,120]
[342798022,1732143053793,-1500.0,0.00054794,120]
[342798023,1732143053802,-615.04,0.00054794,120]
[342798024,1732143053812,-1213.36,0.00054794,120]
[342798025,1732143053822,-1500.0,0.00054794,120]
[342798026,1732143053832,-1500.0,0.00054794,120]
[342798027,1732143053842,-1500.0,0.00054794,120]
[342798028,1732143053851,-537.82,0.00054794,120]
[342798029,1732143053860,-1500.0,0.00054794,120]
[342798030,1732143053874,-1500.0,0.00054794,120]
[342798031,1732143053884,-1500.0,0.00054794,120]
[342798032,1732143053895,-1500.0,0.00054794,120]
[342798033,1732143053904,-500.0,0.00054794,120]
[342798034,1732143053915,-1500.0,0.00054794,120]
[342798035,1732143053925,-500.0,0.00054794,120]
[342798036,1732143053934,-1500.0,0.00054794,120]
[342798037,1732143053945,-1500.0,0.00054794,120]
[342798038,1732143053955,-500.0,0.00054794,120]
[342798039,1732143053964,-500.0,0.00054794,120]
[342798040,1732143053974,-1500.0,0.00054794,120]
[342798041,1732143053984,-1500.0,0.00054794,120]
[342798042,1732143053993,-1500.0,0.00054794,120]
[342798043,1732143054003,-1500.0,0.00054794,120]
[342798044,1732143054013,-1001.49,0.00054794,120]
[342798045,1732143054023,-1500.0,0.00054794,120]
[342798046,1732143054032,-911.56,0.00054794,120]
[342798047,1732143054042,-1500.0,0.00054794,120]
[342798048,1732143054052,-1621.15,0.00054794,120]
[342798049,1732143054061,-500.0,0.00054794,120]
[342798050,1732143054071,-1500.0,0.00054794,120]
[342798051,1732143054080,-1004.9,0.00054794,120]
[342798052,1732143054090,-500.0,0.00054794,120]
[342798053,1732143054100,-1500.0,0.00054794,120]
[342798054,1732143054109,-976.25676998,0.00054794,120]
[342798055,1732143054119,-500.0,0.00054794,120]
[342798056,1732143054128,-1363.03,0.00054794,120]
[342798057,1732143054138,-670.6,0.00054794,120]
[342798058,1732143054148,-4519.72,0.00054794,120]
[342798059,1732143054157,-681.14,0.00054794,120]
[342798060,1732143054167,-500.0,0.00054794,120]
[342798061,1732143054176,-597.02,0.00054794,120]
[342798062,1732143054186,-500.0,0.00054794,120]
[342798063,1732143054196,-500.0,0.00054794,120]
[342798064,1732143054205,-1529.3,0.00054794,120]
[342798065,1732143054215,-500.0,0.00054794,120]
[342798066,1732143054224,-2209.36,0.00054794,120]
[342798067,1732143054233,-500.0,0.00054794,120]
[342798068,1732143054242,-500.0,0.00054794,120]
[342798069,1732143054252,-500.0,0.00054794,120]
[342798070,1732143054261,-500.0,0.00054794,120]
[342798071,1732143054270,-5382.48,0.00054794,120]
[342798072,1732143054280,-500.0,0.00054794,120]
[342798073,1732143054289,-500.0,0.00054794,120]
[342798074,1732143054299,-640.41,0.00054794,120]
[342798075,1732143054391,-1045.28,0.00054794,120]
[342798076,1732143054400,-500.0,0.00054794,120]
[342798077,1732143054409,-500.0,0.00054794,120]
[342798078,1732143054418,-500.0,0.00054794,120]
[342798079,1732143054427,-500.0,0.00054794,120]
[342798080,1732143054436,-500.0,0.00054794,120]
[342798081,1732143054445,-3525.53,0.00054794,120]
[342798082,1732143054455,-500.0,0.00054794,120]
[342798083,1732143054465,-500.0,0.00054794,120]
[342798084,1732143054474,-5113.62,0.00054794,120]
[342798085,1732143054483,-5128.91,0.00054794,120]
[342798086,1732143054492,-500.0,0.00054794,120]
[342798087,1732143054501,-909.91,0.00054794,120]
[342798088,1732143054510,-543.5784316,0.00054794,120]
[342798089,1732143054519,-500.0,0.00054794,120]
[342798090,1732143054528,-500.0,0.00054794,120]
[342798091,1732143054537,-500.0,0.00054795,120]
[342798092,1732143054546,-500.0,0.00054795,120]
[342798093,1732143054555,-500.0,0.00054795,120]
[342798094,1732143054563,-175.4,0.00054795,30]
[342798095,1732143054572,-850.0,0.00055,2]
[342798096,1732143054581,-5121.35612296,0.00055,120]
[342798097,1732143054589,-20000.0,0.00055,120]
[342798098,1732143054598,-20000.0,0.00055,120]
[342798099,1732143054608,-500.0,0.00055068,120]
[342798100,1732143054617,-500.0,0.00055068,120]
[342798101,1732143054627,-500.0,0.00055068,120]
[342798102,1732143054636,-500.0,0.00055068,120]
[342798103,1732143054646,-500.0,0.00055068,120]
[342798104,1732143054655,-500.0,0.00055068,120]
[342798105,1732143054664,-500.0,0.00055068,120]
[342798106,1732143054674,-500.0,0.00055068,120]
[342798107,1732143054684,-949.28,0.00055068,120]
[342798108,1732143054694,-588.18,0.00055068,120]
[342798109,1732143054705,-500.0,0.00055068,120]
[342798110,1732143054714,-500.0,0.00055068,120]
[342798111,1732143054723,-500.0,0.00055068,120]
[342798112,1732143054733,-500.0,0.00055068,120]
[342798113,1732143054743,-500.0,0.00055068,120]
[342798114,1732143054752,-500.0,0.00055068,120]
[342798115,1732143054761,-500.0,0.00055068,120]
[342798116,1732143054771,-216.87,0.00055068,7]
[342798117,1732143054781,-500.0,0.00055068,120]
[342798118,1732143054792,-500.0,0.00055068,120]
[342798119,1732143054801,-1647.84,0.00055068,120]
[342798120,1732143054813,-500.0,0.00055068,120]
[342798121,1732143054823,-672.22,0.00055068,120]
[342798122,1732143054833,-901.77,0.00055068,120]
[342798123,1732143054843,-500.0,0.00055068,120]
[342798124,1732143054852,-749.97,0.00055068,120]
[342798125,1732143054861,-500.0,0.00055068,120]
[342798126,1732143054874,-500.0,0.00055068,120]
[342798127,1732143054884,-1584.28,0.00055068,120]
[342798128,1732143054893,-500.0,0.00055068,120]
[342798129,1732143054903,-500.0,0.00055068,120]
[342798130,1732143054913,-500.0,0.00055068,120]
[342798131,1732143054923,-315.84029133,0.00055068,120]
[342798132,1732143054932,-698.15,0.00055068,120]
[342798133,1732143054942,-500.0,0.00055068,120]
[342798134,1732143054956,-500.0,0.00055068,120]
[342798135,1732143054966,-500.0,0.00055068,120]
[342798136,1732143054977,-500.0,0.00055068,120]
[342798137,1732143054987,-500.0,0.00055068,120]
[342798138,1732143054996,-500.0,0.00055068,120]
[342798139,1732143055005,-500.0,0.00055068,120]
[342798140,1732143055015,-500.0,0.00055068,120]
[342798141,1732143055024,-500.0,0.00055068,120]
[342798142,1732143055034,-500.0,0.00055068,120]
[342798143,1732143055045,-500.0,0.00055068,120]
[342798144,1732143055054,-550.21,0.00055068,120]
[342798145,1732143055063,-2000.0,0.00055068,30]
[342798146,1732143055074,-838.1,0.00055068,120]
[342798147,1732143055085,-500.0,0.00055068,120]
[342798148,1732143055094,-500.0,0.00055068,120]
[342798149,1732143055103,-500.0,0.00055068,120]
[342798150,1732143055112,-678.26,0.00055068,120]
[342798151,1732143055123,-500.0,0.00055068,120]
[342798152,1732143055133,-500.0,0.00055068,120]
[342798153,1732143055143,-500.0,0.00055068,120]
[342798154,1732143055152,-500.0,0.00055068,120]
[342798155,1732143055161,-528.71,0.00055068,120]
[342798156,1732143055170,-577.89,0.00055068,120]
[342798157,1732143055179,-1058.89,0.00055068,120]
[342798158,1732143055188,-300.0,0.00055068,120]
[342798159,1732143055198,-500.0,0.00055068,120]
[342798160,1732143055207,-500.0,0.00055068,120]
[342798161,1732143055216,-500.0,0.00055068,120]
[342798162,1732143055226,-500.0,0.00055068,120]
[342798163,1732143055235,-500.0,0.00055068,120]
[342798164,1732143055245,-500.0,0.00055068,120]
[342798165,1732143055254,-500.0,0.00055068,120]
[342798166,1732143055263,-500.0,0.00055068,120]
[342798167,1732143055272,-516.05,0.00055068,120]
[342798168,1732143055281,-500.0,0.00055068,120]
[342798169,1732143055290,-1582.8,0.00055068,120]
[342798170,1732143055299,-512.91,0.00055068,120]
[342798171,1732143055308,-910.7,0.00055068,120]
[342798172,1732143055317,-500.0,0.00055068,120]
[342798173,1732143055327,-686.07,0.00055068,120]
[342798174,1732143055337,-500.0,0.00055068,120]
[342798175,1732143055347,-718.84,0.00055068,120]
[342798176,1732143055356,-500.0,0.00055068,120]
[342798177,1732143055366,-500.0,0.00055068,120]
[342798178,1732143055375,-566.64,0.00055068,120]
[342798179,1732143055384,-500.0,0.00055068,120]
[342798180,1732143055394,-500.0,0.00055068,120]
[342798181,1732143055404,-500.0,0.00055068,120]
[342798182,1732143055413,-500.0,0.00055068,120]
[342798183,1732143055422,-581.13,0.00055068,120]
[342798184,1732143055431,-500.0,0.00055068,120]
[342798185,1732143055440,-500.0,0.00055068,120]
[342798186,1732143055450,-558.19,0.00055068,120]
[342798187,1732143055465,-500.0,0.00055068,120]
[342798188,1732143055474,-1275.31,0.00055068,120]
[342798189,1732143055483,-500.0,0.00055068,120]
[342798190,1732143055492,-500.0,0.00055068,120]
[342798191,1732143055502,-500.0,0.00055068,120]
[342798192,1732143055512,-646.55,0.00055068,120]
[342798193,1732143055523,-500.0,0.00055068,120]
[342798194,1732143055532,-889.52,0.00055068,120]
[342798195,1732143055541,-500.0,0.00055068,120]
[342798196,1732143055552,-1844.67,0.00055068,120]
[342798197,1732143055563,-1345.16,0.00055068,120]
[342798198,1732143055572,-500.0,0.00055068,120]
[342798199,1732143055582,-500.0,0.00055068,120]
[342798200,1732143055592,-1354.36,0.00055068,120]
[342798201,1732143055602,-500.0,0.00055068,120]
[342798202,1732143055614,-500.0,0.00055068,120]
[342798203,1732143055623,-500.0,0.00055068,120]
[342798204,1732143055632,-1126.54,0.00055068,120]
[342798205,1732143055643,-223.75025925,0.00055068,120]
[342798206,1732143055652,-810.54,0.00055068,120]
[342798207,1732143055661,-1630.49,0.00055068,120]
[342798208,1732143055671,-500.0,0.00055068,120]
[342798209,1732143055682,-508.36537522,0.00055068,120]
[342798210,1732143055692,-500.0,0.00055068,120]
[342798211,1732143055703,-1061.11,0.00055068,120]
[342798212,1732143055712,-1539.37,0.00055068,120]
[342798213,1732143055722,-500.0,0.00055068,120]
[342798214,1732143055732,-500.0,0.00055068,120]
[342798215,1732143055742,-500.0,0.00055068,120]
[342798216,1732143055751,-616.53,0.00055068,120]
[342798217,1732143055762,-500.0,0.00055068,120]
[342798218,1732143055772,-500.0,0.00055068,120]
[342798219,1732143055782,-1163.7,0.00055068,120]
[342798220,1732143055792,-500.0,0.00055068,120]
[342798221,1732143055803,-500.0,0.00055068,120]
[342798222,1732143055813,-500.0,0.00055068,120]
[342798223,1732143055822,-768.83,0.00055068,120]
[342798224,1732143055832,-1697.48,0.00055068,120]
[342798225,1732143055843,-500.0,0.00055068,120]
[342798226,1732143055855,-477.19843743,0.00055068,120]
[342798227,1732143055866,-500.0,0.00055068,120]
[342798228,1732143055880,-1494.04,0.00055068,120]
[342798229,1732143055890,-583.76,0.00055068,120]
[342798230,1732143055900,-500.0,0.00055068,120]
[342798231,1732143055910,-500.0,0.00055068,120]
[342798232,1732143055920,-500.0,0.00055068,120]
[342798233,1732143055930,-500.0,0.00055068,120]
[342798234,1732143055941,-500.0,0.00055068,120]
[342798235,1732143055953,-1417.12,0.00055068,120]
[342798236,1732143055963,-500.0,0.00055068,120]
[342798237,1732143055974,-500.0,0.00055068,120]
[342798238,1732143055984,-297.31575473,0.00055068,120]
[342798239,1732143055994,-500.0,0.00055068,120]
[342798240,1732143056004,-514.86,0.00055068,120]
[342798241,1732143056013,-224.08853561,0.00055068,120]
[342798242,1732143056023,-580.28,0.00055068,120]
[342798243,1732143056033,-500.0,0.00055068,120]
[342798244,1732143056043,-500.0,0.00055068,120]
[342798245,1732143056054,-500.0,0.00055068,120]
[342798246,1732143056063,-500.0,0.00055068,120]
[342798247,1732143056074,-500.0,0.00055068,120]
[342798248,1732143056085,-625.85,0.00055068,120]
[342798249,1732143056094,-500.0,0.00055068,120]
[342798250,1732143056103,-500.0,0.00055068,120]
[342798251,1732143056114,-500.0,0.00055068,120]
[342798252,1732143056123,-835.63,0.00055068,120]
[342798253,1732143056133,-500.0,0.00055068,120]
[342798254,1732143056144,-1642.42,0.00055068,7]
[342798255,1732143056157,-500.0,0.00055068,120]
[342798256,1732143056166,-1168.69,0.00055068,120]
[342798257,1732143056176,-500.0,0.00055068,14]
[342798258,1732143056185,-500.0,0.00055068,120]
[342798259,1732143056195,-785.67,0.00055068,120]
[342798260,1732143056205,-526.48,0.00055068,120]
[342798261,1732143056214,-500.0,0.00055068,120]
[342798262,1732143056224,-1791.8,0.00055068,120]
[342798263,1732143056234,-500.0,0.00055068,120]
[342798264,1732143056243,-500.0,0.00055068,120]
[342798265,1732143056253,-500.0,0.00055068,120]
[342798266,1732143056262,-500.0,0.00055068,30]
[342798267,1732143056272,-500.0,0.00055068,120]
[342798268,1732143056281,-500.0,0.00055068,120]
[342798269,1732143056291,-500.0,0.00055068,120]
[342798270,1732143056300,-764.29,0.00055068,120]
[342798271,1732143056310,-500.0,0.00055068,120]
[342798272,1732143056319,-937.69,0.00055068,120]
[342798273,1732143056329,-830.14,0.00055068,120]
[342798274,1732143056338,-500.0,0.00055068,58]
[342798275,1732143056347,-500.0,0.00055068,120]
[342798276,1732143056357,-500.0,0.00055068,120]
[342798277,1732143056366,-1926.82,0.00055068,120]
[342798278,1732143056376,-1002.99752724,0.00055068,2]
[342798279,1732143056385,-500.0,0.00055068,30]
[342798280,1732143056397,-500.0,0.00055068,120]
[342798281,1732143056406,-513.97,0.00055068,120]
[342798282,1732143056416,-500.0,0.00055068,120]
[342798283,1732143056425,-1258.94,0.00055068,120]
[342798284,1732143056434,-615.91,0.00055068,120]
[342798285,1732143056443,-500.0,0.00055068,120]
[342798286,1732143056453,-739.53,0.00055068,120]
[342798287,1732143056463,-500.0,0.00055068,120]
[342798288,1732143056472,-2364.09,0.00055068,120]
[342798289,1732143056481,-500.0,0.00055068,120]
[342798290,1732143056490,-500.0,0.00055068,120]
[342798291,1732143056499,-500.0,0.00055068,120]
[342798292,1732143056508,-500.0,0.00055068,120]
[342798293,1732143056517,-1516.8,0.00055068,120]
[342798294,1732143056526,-1222.69,0.00055068,120]
[342798295,1732143056536,-644.03,0.00055068,120]
[342798296,1732143056545,-689.07,0.00055068,120]
[342798297,1732143056554,-500.0,0.00055068,120]
[342798298,1732143056563,-2792.61,0.00055068,120]
[342798299,1732143056573,-500.0,0.00055068,120]
[342798300,1732143056582,-500.0,0.00055068,120]
[342798301,1732143056591,-500.0,0.00055068,120]
[342798302,1732143056601,-500.0,0.00055068,120]
[342798303,1732143056611,-598.66,0.00055068,120]
[342798304,1732143056620,-500.0,0.00055068,120]
[342798305,1732143056629,-500.0,0.00055068,120]
[342798306,1732143056638,-517.71,0.00055068,120]
[342798307,1732143056654,-696.8,0.00055068,120]
[342798308,1732143056663,-500.0,0.00055068,120]
[342798309,1732143056673,-670.6,0.00055068,120]
[342798310,1732143056682,-1622.41,0.00055068,120]
[342798311,1732143056692,-500.0,0.00055068,120]
[342798312,1732143056701,-732.47,0.00055068,120]
[342798313,1732143056710,-500.0,0.00055068,120]
[342798314,1732143056719,-506.00658716,0.00055068,120]
[342798315,1732143056728,-500.0,0.00055068,120]
[342798316,1732143056737,-500.0,0.00055068,120]
[342798317,1732143056746,-500.0,0.00055068,120]
[342798318,1732143056755,-500.0,0.00055068,120]
[342798319,1732143056764,-500.0,0.00055068,120]
[342798320,1732143056773,-3752.95,0.00055068,120]
[342798321,1732143056782,-500.4594324,0.00055068,120]
[342798322,1732143056792,-500.0,0.00055068,120]
[342798323,1732143056801,-694.86,0.00055068,120]
[342798324,1732143056811,-501.2547338,0.00055068,120]
[342798325,1732143056820,-500.0,0.00055068,120]
[342798326,1732143056830,-527.72,0.00055068,120]
[342798327,1732143056839,-500.0,0.00055068,120]
[342798328,1732143056848,-2754.45,0.00055068,120]
[342798329,1732143056858,-500.0,0.00055068,120]
[342798330,1732143056868,-500.0,0.00055068,60]
[342798331,1732143056879,-500.0,0.00055068,120]
[342798332,1732143056889,-777.0,0.00055068,120]
[342798333,1732143056900,-750.37,0.00055068,120]
[342798334,1732143056910,-1552.42,0.00055068,120]
[342798335,1732143056919,-586.88,0.00055068,120]
[342798336,1732143056928,-500.0,0.00055068,120]
[342798337,1732143056938,-546.79,0.00055068,120]
[342798338,1732143056951,-500.0,0.00055068,120]
[342798339,1732143056961,-500.0,0.00055068,120]
[342798340,1732143056970,-1410.35,0.00055068,120]
[342798341,1732143056980,-622.81,0.00055068,120]
[342798342,1732143056989,-500.0,0.00055068,120]
[342798343,1732143056999,-500.0,0.00055068,120]
[342798344,1732143057008,-1078.42,0.00055068,120]
[342798345,1732143057017,-2348.91,0.00055068,120]
[342798346,1732143057027,-500.0,0.00055068,120]
[342798347,1732143057037,-1803.88,0.00055068,120]
[342798348,1732143057046,-875.42,0.00055068,120]
[342798349,1732143057055,-500.0,0.00055068,120]
[342798350,1732143057064,-500.0,0.00055068,120]
[342798351,1732143057073,-908.45,0.00055068,120]
[342798352,1732143057082,-500.0,0.00055068,120]
[342798353,1732143057092,-1745.98,0.00055068,120]
[342798354,1732143057101,-500.0,0.00055068,120]
[342798355,1732143057110,-643.69,0.00055068,120]
[342798356,1732143057119,-500.0,0.00055068,120]
[342798357,1732143057128,-659.6,0.00055068,120]
[342798358,1732143057138,-500.0,0.00055068,120]
[342798359,1732143057148,-1212.54,0.00055068,120]
[342798360,1732143057157,-500.0,0.00055068,120]
[342798361,1732143057166,-2042.25,0.00055068,120]
[342798362,1732143057175,-828.06,0.00055068,120]
[342798363,1732143057185,-500.0,0.00055068,120]
[342798364,1732143057194,-500.0,0.00055068,120]
[342798365,1732143057203,-500.0,0.00055068,120]
[342798366,1732143057212,-205.17743501,0.00055068,120]
[342798367,1732143057221,-646.63,0.00055068,120]
[342798368,1732143057230,-806.31,0.00055068,120]
[342798369,1732143057240,-594.65885018,0.00055068,120]
[342798370,1732143057249,-500.0,0.00055068,120]
[342798371,1732143057259,-1287.88,0.00055068,120]
[342798372,1732143057268,-500.0,0.00055068,120]
[342798373,1732143057277,-1410.77,0.00055068,120]
[342798374,1732143057287,-500.0,0.00055068,120]
[342798375,1732143057296,-500.0,0.00055068,120]
[342798376,1732143057306,-500.0,0.00055068,120]
[342798377,1732143057315,-623.91,0.00055068,120]
[342798378,1732143057324,-500.0,0.00055068,120]
[342798379,1732143057333,-500.0,0.00055068,120]
[342798380,1732143057342,-500.0,0.00055068,120]
[342798381,1732143057352,-1000.52,0.00055068,120]
[342798382,1732143057361,-766.21,0.00055068,120]
[342798383,1732143057371,-500.0,0.00055068,120]
[342798384,1732143057381,-500.0,0.00055068,120]
[342798385,1732143057390,-500.0,0.00055068,120]
[342798386,1732143057399,-500.0,0.00055068,120]
[342798387,1732143057409,-1013.49,0.00055068,120]
[342798388,1732143057418,-500.0,0.00055068,120]
[342798389,1732143057427,-811.56,0.00055068,120]
[342798390,1732143057437,-500.0,0.00055068,120]
[342798391,1732143057446,-500.0,0.00055068,120]
[342798392,1732143057456,-3361.2,0.00055068,120]
[342798393,1732143057465,-633.81,0.00055068,120]
[342798394,1732143057475,-1185.33,0.00055068,120]
[342798395,1732143057483,-500.0,0.00055068,120]
[342798396,1732143057492,-500.0,0.00055068,120]
[342798397,1732143057502,-838.48,0.00055068,120]
[342798398,1732143057511,-1382.6,0.00055068,120]
[342798399,1732143057520,-500.0,0.00055068,120]
[342798400,1732143057529,-500.0,0.00055068,120]
[342798401,1732143057538,-500.0,0.00055068,120]
[342798402,1732143057550,-2198.56,0.00055068,120]
[342798403,1732143057560,-500.0,0.00055068,120]
[342798404,1732143057570,-500.0,0.00055068,120]
[342798405,1732143057579,-658.16,0.00055068,120]
[342798406,1732143057588,-500.0,0.00055068,120]
[342798407,1732143057598,-500.0,0.00055068,120]
[342798408,1732143057607,-500.0,0.00055068,120]
[342798409,1732143057618,-500.0,0.00055068,120]
[342798410,1732143057628,-504.74517491,0.00055068,120]
[342798411,1732143057638,-500.0,0.00055068,120]
[342798412,1732143057648,-500.0,0.00055068,120]
[342798413,1732143057658,-581.06,0.00055068,120]
[342798414,1732143057667,-500.0,0.00055068,120]
[342798415,1732143057676,-843.03,0.00055068,120]
[342798416,1732143057686,-518.28242863,0.00055068,120]
[342798417,1732143057696,-500.0,0.00055068,120]
[342798418,1732143057705,-665.72,0.00055068,120]
[342798419,1732143057714,-500.0,0.00055068,120]
[342798420,1732143057724,-789.82,0.00055068,120]
[342798421,1732143057734,-773.4,0.00055068,120]
[342798422,1732143057743,-660.24,0.00055068,120]
[342798423,1732143057753,-500.0,0.00055068,120]
[342798424,1732143057762,-500.0,0.00055068,120]
[342798425,1732143057771,-500.0,0.00055068,120]
[342798426,1732143057781,-504.35,0.00055068,120]
[342798427,1732143057791,-2411.2,0.00055068,120]
[342798428,1732143057800,-500.0,0.00055068,120]
[342798429,1732143057809,-3997.56,0.00055068,120]
[342798430,1732143057818,-500.0,0.00055068,120]
[342798431,1732143057829,-500.0,0.00055068,120]
[342798432,1732143057838,-500.0,0.00055068,120]
[342798433,1732143057848,-178.477726,0.00055068,120]
[342798434,1732143057857,-500.0,0.00055068,120]
[342798435,1732143057867,-220.349852,0.00055068,120]
[342798436,1732143057880,-178.477726,0.00055068,120]
[342798437,1732143057890,-155.055593,0.00055068,120]
[342798438,1732143057900,-220.349852,0.00055068,120]
[342798439,1732143057911,-155.055593,0.00055068,120]
[342798440,1732143057922,-220.349852,0.00055068,120]
[342798441,1732143057932,-155.055593,0.00055068,120]
[342798442,1732143057941,-178.477726,0.00055068,120]
[342798443,1732143057953,-559.66,0.00055068,120]
[342798444,1732143057963,-500.0,0.00055068,120]
[342798445,1732143057973,-1755.1,0.00055068,120]
[342798446,1732143057982,-500.0,0.00055068,120]
[342798447,1732143057991,-500.0,0.00055068,120]
[342798448,1732143058000,-500.0,0.00055068,120]
[342798449,1732143058010,-1021.42,0.00055068,120]
[342798450,1732143058020,-968.59,0.00055068,120]
[342798451,1732143058031,-500.0,0.00055068,120]
[342798452,1732143058041,-747.74,0.00055068,120]
[342798453,1732143058050,-186.9109494,0.00055068,120]
[342798454,1732143058060,-538.3584585,0.00055068,120]
[342798455,1732143058070,-500.0,0.00055068,120]
[342798456,1732143058080,-650.26,0.00055068,120]
[342798457,1732143058090,-552.66,0.00055068,120]
[342798458,1732143058099,-500.0,0.00055068,120]
[342798459,1732143058109,-528.53,0.00055068,120]
[342798460,1732143058119,-500.0,0.00055068,120]
[342798461,1732143058129,-661.12,0.00055068,120]
[342798462,1732143058139,-4504.33,0.00055068,120]
[342798463,1732143058149,-386.43527513,0.00055068,120]
[342798464,1732143058158,-500.0,0.00055068,120]
[342798465,1732143058168,-500.0,0.00055068,120]
[342798466,1732143058178,-500.0,0.00055068,120]
[342798467,1732143058188,-500.0,0.00055068,120]
[342798468,1732143058198,-1414.7,0.00055068,120]
[342798469,1732143058208,-500.0,0.00055068,120]
[342798470,1732143058217,-1839.1,0.00055068,20]
[342798471,1732143058227,-500.0,0.00055068,120]
[342798472,1732143058237,-600.15,0.00055068,120]
[342798473,1732143058247,-500.0,0.00055068,120]
[342798474,1732143058258,-500.0,0.00055068,120]
[342798475,1732143058268,-500.0,0.00055068,120]
[342798476,1732143058277,-500.0,0.00055068,120]
[342798477,1732143058286,-639.71,0.00055068,120]
[342798478,1732143058296,-1685.02,0.00055068,120]
[342798479,1732143058305,-500.0,0.00055068,120]
[342798480,1732143058315,-500.0,0.00055068,120]
[342798481,1732143058325,-500.0,0.00055068,120]
[342798482,1732143058334,-500.0,0.00055068,120]
[342798483,1732143058344,-643.92,0.00055068,120]
[342798484,1732143058354,-503.41,0.00055068,120]
[342798485,1732143058364,-1838.85,0.00055068,120]
[342798486,1732143058373,-500.0,0.00055068,120]
[342798487,1732143058382,-777.36,0.00055068,120]
[342798488,1732143058392,-500.0,0.00055068,120]
[342798489,1732143058401,-500.0,0.00055068,120]
[342798490,1732143058410,-1088.52,0.00055068,120]
[342798491,1732143058421,-500.0,0.00055068,120]
[342798492,1732143058431,-3963.88,0.00055068,120]
[342798493,1732143058440,-258.72807314,0.00055068,120]
[342798494,1732143058449,-500.0,0.00055068,120]
[342798495,1732143058459,-500.0,0.00055068,120]
[342798496,1732143058468,-467.85997457,0.00055068,120]
[342798497,1732143058478,-500.0,0.00055068,120]
[342798498,1732143058488,-500.0,0.00055068,120]
[342798499,1732143058497,-500.0,0.00055068,120]
[342798500,1732143058597,-500.0,0.00055068,120]
[342798501,1732143058648,-500.0,0.00055068,120]
[342798502,1732143058658,-500.0,0.00055068,120]
[342798503,1732143058667,-500.0,0.00055068,120]
[342798504,1732143058677,-500.0,0.00055068,120]
[342798505,1732143058686,-508.93,0.00055068,120]
[342798506,1732143058696,-500.0,0.00055068,120]
[342798507,1732143058706,-500.0,0.00055068,120]
[342798508,1732143058715,-500.0,0.00055068,120]
[342798509,1732143058724,-500.0,0.00055068,120]
[342798510,1732143058738,-522.18,0.00055068,120]
[342798511,1732143058748,-500.46145358,0.00055068,120]
[342798512,1732143058757,-674.72,0.00055068,120]
[342798513,1732143058767,-502.07858078,0.00055068,120]
[342798514,1732143058777,-500.0,0.00055068,120]
[342798515,1732143058786,-500.0,0.00055068,120]